bitfinex/quotes_SOLUSD_20251120
["timestamp","ask_amount","ask_price","bid_price","bid_amount"]
[1763607385328,0.72,143.8,143.79,4.06948118]
[1763607385538,1.68,143.8,143.79,4.06948118]
[1763607385738,2.4,143.8,143.79,4.06948118]
[1763607387137,9.3541514,143.8,143.74,50.0]
[1763607387344,9.3541514,143.8,143.76,4.06948118]
[1763607387345,7.64496714,143.79,143.76,4.06948118]
[1763607387837,0.69,143.78,143.76,4.06948118]
[1763607388141,1.68,143.77,143.76,4.06948118]
[1763607388358,1.68,143.78,143.77,9.78882769]
[1763607388530,1.68,143.78,143.77,31.97926887]
[1763607389437,1.68,143.78,143.77,38.93482287]
[1763607389633,1.68,143.78,143.77,43.00430405]
[1763607389948,1.68,143.78,143.77,38.93482287]
[1763607390628,1.68,143.78,143.77,43.00430405]
[1763607390830,1.68,143.78,143.77,38.93482287]
[1763607391131,0.1,143.81,143.8,77.90978769]
[1763607391343,1.68,143.84,143.83,50.0]
[1763607391645,1.68,143.84,143.83,65.09161479]
[1763607391840,1.68,143.84,143.83,61.02213361]
[1763607393250,1.93593088,143.88,143.87,9.78882769]
[1763607393447,1.93593088,143.88,143.87,13.85830887]
[1763607393448,3.61593088,143.88,143.87,13.85830887]
[1763607394250,11.25616718,143.88,143.87,4.06948118]
[1763607394746,11.25616718,143.88,143.83,75.07335412]
[1763607394949,11.25616718,143.88,143.87,10.78128484]
[1763607395653,4.30593088,143.88,143.86,10.78128484]
[1763607395945,4.30593088,143.88,143.87,10.78128484]
[1763607396326,3.61593088,143.88,143.87,10.78128484]
[1763607397145,1.93593088,143.88,143.87,10.78128484]
[1763607397351,3.61593088,143.88,143.87,70.57011253]
[1763607397850,4.30593088,143.88,143.85,50.0]
[1763607398023,0.69,143.87,143.85,10.78128484]
[1763607398232,0.69,143.87,143.84,10.78128484]
[1763607398948,0.69,143.87,143.85,10.78128484]
[1763607400658,18.42204551,143.87,143.82,10.78128484]
[1763607400956,31.98817847,143.87,143.82,6.97061931]
[1763607401148,6.97061931,143.84,143.79,6.97061931]
[1763607401354,6.97061931,143.81,143.76,6.97061931]
[1763607401669,24.34105291,143.79,143.72,6.97061931]
[1763607401839,6.97061931,143.77,143.72,6.97061931]
[1763607402037,24.34105291,143.79,143.7,6.97061931]
[1763607402038,6.97061931,143.75,143.7,6.97061931]
[1763607402239,6.97061931,143.74,143.69,6.97061931]
[1763607402445,0.69,143.73,143.69,6.97061931]
[1763607402739,1.68,143.72,143.68,50.0]
[1763607402948,1.68,143.72,143.68,56.97061931]
[1763607403156,0.69,143.71,143.68,56.97061931]
[1763607403855,0.69,143.71,143.68,63.93047583]
[1763607404061,1.68,143.7,143.69,6.97061931]
[1763607404853,0.69,143.73,143.69,6.97061931]
[1763607404854,0.69,143.76,143.7,59.78882769]
[1763607405068,1.68,143.75,143.73,6.97061931]
[1763607405250,7.64605223,143.76,143.7,59.78882769]
[1763607405570,1.68,143.75,143.72,6.97061931]
[1763607405744,2.37,143.75,143.71,6.97061931]
[1763607405937,0.69,143.74,143.71,6.97061931]
[1763607406360,0.69,143.74,143.7,66.74740931]
[1763607406664,0.69,143.74,143.7,6.97061931]
[1763607406863,0.69,143.74,143.71,6.97061931]
[1763607407046,1.68,143.73,143.71,6.97061931]
[1763607407442,0.69,143.74,143.71,6.97061931]
[1763607407642,1.68,143.73,143.71,6.97061931]
[1763607408147,1.68,143.72,143.71,6.97061931]
[1763607409566,6.95700836,143.74,143.69,6.97061931]
[1763607409756,1.68,143.73,143.71,6.97061931]
[1763607409942,1.68,143.72,143.71,6.97061931]
[1763607410538,1.68,143.72,143.7,6.97061931]
[1763607410742,2.35,143.72,143.7,6.97061931]
[1763607411971,0.67,143.71,143.68,50.0]
[1763607412354,0.67,143.71,143.68,56.97061931]
[1763607412867,0.67,143.74,143.7,6.97061931]
[1763607413072,1.68,143.73,143.7,6.97061931]
[1763607413578,0.67,143.72,143.7,6.97061931]
[1763607413877,0.67,143.72,143.68,6.97061931]
[1763607414462,6.958458,143.71,143.68,6.97061931]
[1763607414665,1.68,143.7,143.68,6.97061931]
[1763607414979,2.35,143.7,143.67,56.97061931]
[1763607415181,2.35,143.7,143.67,63.93099965]
[1763607415364,2.35,143.7,143.67,56.96038034]
[1763607415565,0.67,143.72,143.68,6.97061931]
[1763607415872,31.31844538,143.75,143.69,6.97061931]
[1763607416063,0.67,143.72,143.7,6.97061931]
[1763607416449,7.628023,143.72,143.69,6.97061931]
[1763607416656,0.67,143.71,143.69,6.97061931]
[1763607416876,1.68,143.7,143.69,6.97061931]
[1763607417076,1.68,143.7,143.69,13.93004585]
[1763607419089,1.68,143.7,143.68,6.95991091]
[1763607419380,1.68,143.7,143.69,6.97061931]
[1763607420187,0.67,143.72,143.69,6.97061931]
[1763607420387,1.68,143.7,143.69,6.97061931]
[1763607420565,1.68,143.7,143.68,6.97061931]
[1763607420765,2.35,143.7,143.68,6.97061931]
[1763607420960,0.67,143.69,143.67,6.97061931]
[1763607421160,1.68,143.7,143.68,6.97061931]
[1763607421386,1.68,143.7,143.69,6.97061931]
[1763607421590,0.67,143.75,143.69,6.97061931]
[1763607421788,0.67,143.77,143.74,6.97061931]
[1763607422095,1.68,143.76,143.75,6.97061931]
[1763607422461,2.35,143.76,143.71,50.0]
[1763607422683,0.67,143.75,143.73,6.97061931]
[1763607425960,0.67,143.75,143.74,6.97061931]
[1763607426365,1.68,143.76,143.74,6.97061931]
[1763607426586,9.30605304,143.76,143.74,6.97061931]
[1763607427589,7.62605304,143.76,143.75,6.97061931]
[1763607427789,6.97061931,143.83,143.75,56.97061931]
[1763607427970,2.35,143.82,143.78,6.97061931]
[1763607428389,0.67,143.81,143.78,6.97061931]
[1763607428990,6.95410292,143.8,143.78,6.97061931]
[1763607429186,1.68,143.79,143.78,6.97061931]
[1763607430783,1.68,143.79,143.78,2.60373467]
[1763607431082,9.30470311,143.79,143.76,2.60373467]
[1763607431269,2.35,143.79,143.76,2.60373467]
[1763607433176,2.35,143.79,143.76,9.55970274]
[1763607433995,2.35,143.79,143.77,2.60373467]
[1763607434690,1.68,143.79,143.77,2.60373467]
[1763607434894,2.35,143.78,143.72,50.0]
[1763607435196,2.35,143.78,143.74,6.97414601]
[1763607435376,0.67,143.77,143.74,6.97414601]
[1763607436072,7.62584007,143.77,143.74,6.97414601]
[1763607436700,0.67,143.76,143.74,6.97414601]
[1763607436897,1.68,143.75,143.74,6.97414601]
[1763607437066,1.68,143.75,143.73,6.95746898]
[1763607437271,1.68,143.75,143.74,6.97414601]
[1763607438394,1.68,143.75,143.73,6.95746898]
[1763607438395,2.35,143.75,143.73,6.97414601]
[1763607438902,2.35,143.77,143.74,6.97414601]
[1763607439079,1.68,143.76,143.75,6.97414601]
[1763607439781,2.35,143.76,143.75,6.97414601]
[1763607440504,1.68,143.76,143.75,6.97414601]
[1763607440920,2.4,143.76,143.74,6.95691726]
[1763607441081,2.4,143.76,143.74,13.93106327]
[1763607442275,0.72,143.76,143.74,13.93106327]
[1763607442508,1.68,143.75,143.74,13.93106327]
[1763607443583,2.4,143.75,143.72,6.97414601]
[1763607443811,0.72,143.74,143.71,6.97414601]
[1763607443980,7.67705375,143.74,143.71,6.97414601]
[1763607444376,0.72,143.73,143.71,6.97414601]
[1763607444574,1.68,143.72,143.71,13.93260401]
[1763607444795,1.68,143.72,143.71,6.97414601]
[1763607446978,0.72,143.73,143.71,6.97414601]
[1763607447186,7.66657891,143.75,143.72,6.97414601]
[1763607447502,2.39,143.74,143.73,6.97414601]
[1763607447998,2.39,143.74,143.72,6.97414601]
[1763607448214,0.71,143.73,143.72,6.97414601]
[1763607448390,0.71,143.76,143.72,13.93196301]
[1763607448700,1.68,143.73,143.72,6.957817]
[1763607449807,1.68,143.73,143.72,13.93196301]
[1763607451006,1.68,143.73,143.68,6.9596144]
[1763607451199,1.68,143.73,143.69,6.97414601]
[1763607451794,6.95797383,143.72,143.67,56.96028559]
[1763607451995,6.95797383,143.72,143.68,6.97414601]
[1763607452394,6.95797383,143.72,143.67,6.97414601]
[1763607452593,0.71,143.71,143.67,6.97414601]
[1763607452890,1.68,143.7,143.67,6.97414601]
[1763607453403,2.39,143.7,143.67,6.97414601]
[1763607453908,2.39,143.7,143.66,6.96087985]
[1763607454117,2.39,143.7,143.67,6.97414601]
[1763607454412,7.66799399,143.72,143.69,6.97414601]
[1763607454590,1.68,143.71,143.69,6.97414601]
[1763607454793,1.68,143.71,143.67,50.66]
[1763607454992,2.39,143.71,143.69,6.97414601]
[1763607455204,1.68,143.7,143.69,6.97414601]
[1763607456490,2.39,143.7,143.69,6.97414601]
[1763607456790,2.39,143.7,143.68,6.97414601]
[1763607457089,1.68,143.7,143.68,6.97414601]
[1763607457488,1.68,143.7,143.68,13.93379465]
[1763607457711,1.68,143.7,143.69,6.97414601]
[1763607458310,0.71,143.71,143.69,6.97414601]
[1763607458504,1.68,143.7,143.69,6.97414601]
[1763607458798,1.68,143.7,143.69,2.60703736]
[1763607459510,0.71,143.71,143.69,2.60703736]
[1763607459713,1.68,143.7,143.69,2.60703736]
[1763607460086,1.68,143.7,143.68,2.60703736]
[1763607460326,0.71,143.69,143.66,6.96071177]
[1763607460613,0.71,143.69,143.65,56.96121624]
[1763607460910,0.71,143.69,143.67,4.07427911]
[1763607461099,1.68,143.68,143.67,4.07427911]
[1763607462598,0.71,143.71,143.67,11.03445646]
[1763607462798,2.39,143.7,143.68,4.07427911]
[1763607463320,1.68,143.69,143.68,4.07427911]
[1763607465017,0.71,143.77,143.72,68.12096]
[1763607465196,1.68,143.76,143.74,4.07427911]
[1763607465596,1.68,143.76,143.75,4.07427911]
[1763607465997,6.95474201,143.79,143.75,4.07427911]
[1763607466198,2.39,143.78,143.77,4.07427911]
[1763607466718,2.39,143.78,143.76,4.07427911]
[1763607466921,9.34517305,143.78,143.76,4.07427911]
[1763607467426,1.68,143.77,143.76,4.07427911]
[1763607468920,2.39,143.77,143.76,4.07427911]
[1763607469322,1.68,143.77,143.74,56.95696512]
[1763607469508,1.68,143.77,143.76,4.07427911]
[1763607472222,2.35,143.77,143.76,4.07427911]
[1763607472931,1.68,143.77,143.76,4.07427911]
[1763607476019,18.12096,143.83,143.76,4.07427911]
[1763607476020,7.62416508,143.8,143.76,11.72027999]
[1763607476208,0.67,143.82,143.79,4.07427911]
[1763607476409,0.67,143.82,143.81,4.07427911]
[1763607476833,7.62229114,143.84,143.81,4.07427911]
[1763607477024,0.67,143.84,143.83,4.07427911]
[1763607477232,2.35,143.84,143.83,4.07427911]
[1763607478132,9.30216907,143.84,143.83,4.07427911]
[1763607480115,7.62216907,143.84,143.83,4.07427911]
[1763607480333,0.67,143.85,143.83,4.07427911]
[1763607480649,0.67,143.85,143.81,50.0]
[1763607480650,0.67,143.85,143.84,4.07427911]
[1763607480830,2.35,143.85,143.84,4.07427911]
[1763607481615,2.35,143.85,143.81,4.07427911]
[1763607481821,0.67,143.84,143.83,4.07427911]
[1763607482339,6.95119359,143.87,143.83,4.07427911]
[1763607482539,7.62119359,143.87,143.86,4.07427911]
[1763607482734,9.30119359,143.87,143.86,4.07427911]
[1763607483041,2.35,143.87,143.86,4.07427911]
[1763607484345,9.30071939,143.87,143.86,4.07427911]
[1763607484934,9.30071939,143.87,143.86,10.78320245]
[1763607486562,7.62071939,143.87,143.86,10.78320245]
[1763607486736,9.30071939,143.87,143.86,10.78320245]
[1763607492759,9.30071939,143.87,143.83,50.0]
[1763607492944,10.78320245,143.85,143.78,9.78882769]
[1763607493263,0.67,143.86,143.78,10.78320245]
[1763607493264,12.46320245,143.84,143.78,10.78320245]
[1763607493434,12.46320245,143.84,143.76,57.64572662]
[1763607493634,0.67,143.83,143.81,10.78320245]
[1763607493848,0.67,143.86,143.81,10.78320245]
[1763607494058,13.13320245,143.85,143.8,10.78320245]
[1763607494556,0.67,143.84,143.8,10.78320245]
[1763607494965,6.95265243,143.83,143.8,10.78320245]
[1763607495151,1.68,143.82,143.8,10.78320245]
[1763607495461,1.68,143.81,143.8,10.78320245]
[1763607495654,2.35,143.81,143.8,10.78320245]
[1763607495964,1.68,143.81,143.8,10.78320245]
[1763607496534,2.35,143.81,143.8,10.78320245]
[1763607496737,1.68,143.81,143.8,10.78320245]
[1763607497677,8.63361935,143.81,143.8,10.78320245]
[1763607498366,9.30361935,143.81,143.74,7.64265243]
[1763607498553,0.67,143.8,143.76,10.78320245]
[1763607498746,0.67,143.8,143.77,10.78320245]
[1763607499143,0.67,143.8,143.76,10.78320245]
[1763607499566,6.95458654,143.79,143.77,10.78320245]
[1763607499745,1.68,143.78,143.77,10.78320245]
[1763607499944,2.4,143.78,143.77,10.78320245]
[1763607500654,9.35552165,143.78,143.77,10.78320245]
[1763607501041,6.95463217,143.79,143.77,10.78320245]
[1763607501240,17.38324284,143.82,143.75,50.7]
[1763607501241,6.9535761,143.82,143.78,11.48320245]
[1763607501438,1.68,143.81,143.8,10.78320245]
[1763607502068,1.68,143.81,143.77,50.0]
[1763607502253,1.68,143.81,143.8,10.78320245]
[1763607502641,2.4,143.81,143.8,10.78320245]
[1763607502976,1.68,143.81,143.8,10.78320245]
[1763607503872,1.68,143.81,143.8,11.48320245]
[1763607504562,1.68,143.81,143.8,18.43730537]
[1763607504862,1.68,143.81,143.8,11.72005748]
[1763607505443,1.68,143.81,143.8,4.76595456]
[1763607505649,6.95271574,143.83,143.8,4.76595456]
[1763607505878,6.95271574,143.83,143.82,4.06595456]
[1763607506077,8.63271574,143.83,143.82,4.06595456]
[1763607506769,1.68,143.83,143.82,4.06595456]
[1763607507472,1.68,143.83,143.78,11.02065524]
[1763607507654,2.35,143.83,143.82,4.06595456]
[1763607507842,8.63265243,143.83,143.82,4.06595456]
[1763607508043,8.63265243,143.83,143.77,75.78651096]
[1763607508239,8.63265243,143.83,143.81,4.06595456]
[1763607508459,0.67,143.82,143.81,4.06595456]
[1763607509266,0.67,143.82,143.79,4.06595456]
[1763607509560,6.95361935,143.81,143.79,4.06595456]
[1763607509861,1.68,143.8,143.79,4.06595456]
[1763607511960,8.63410292,143.8,143.79,4.06595456]
[1763607512164,9.30410292,143.8,143.79,4.06595456]
[1763607512968,2.35,143.8,143.79,4.06595456]
[1763607513165,1.68,143.8,143.79,4.06595456]
[1763607515070,9.30410292,143.8,143.79,4.06595456]
[1763607519171,2.35,143.8,143.79,4.06595456]
[1763607519478,1.68,143.8,143.79,4.06595456]
[1763607520471,6.9538141,143.81,143.79,4.06595456]
[1763607520653,1.68,143.8,143.77,7.66551457]
[1763607521777,1.68,143.8,143.79,4.06595456]
[1763607522980,1.68,143.8,143.79,2.6031788]
[1763607526481,24.33090023,143.85,143.79,3.3131788]
[1763607526687,1.68,143.84,143.83,2.6031788]
[1763607526982,2.35,143.84,143.83,2.6031788]
[1763607527789,2.35,143.84,143.82,2.6031788]
[1763607527966,0.67,143.83,143.82,2.6031788]
[1763607528473,0.67,143.83,143.78,68.07758466]
[1763607528474,6.95313586,143.82,143.81,2.6031788]
[1763607531185,6.95313586,143.82,143.79,0.71]
[1763607531386,1.68,143.81,143.79,0.71]
[1763607531593,1.68,143.81,143.79,7.66445474]
[1763607532369,1.68,143.81,143.79,0.71]
[1763607532571,1.68,143.81,143.8,2.6031788]
[1763607533671,0.72,143.87,143.82,6.95313586]
[1763607533971,8.88646582,143.88,143.86,2.6031788]
[1763607534185,8.88646582,143.88,143.87,2.6031788]
[1763607534384,9.60646582,143.88,143.87,2.6031788]
[1763607534784,11.28646582,143.88,143.87,2.6031788]
[1763607534978,10.56646582,143.88,143.87,2.6031788]
[1763607535374,3.61593088,143.88,143.87,2.6031788]
[1763607535590,11.28616718,143.88,143.87,2.6031788]
[1763607536475,11.28616718,143.88,143.86,2.6031788]
[1763607536783,0.72,143.87,143.85,2.6031788]
[1763607537093,7.67119018,143.87,143.85,2.6031788]
[1763607537475,0.72,143.86,143.85,2.6031788]
[1763607539100,7.67120255,143.86,143.85,2.6031788]
[1763607540172,6.95071939,143.87,143.85,2.6031788]
[1763607540477,0.72,143.86,143.82,2.6031788]
[1763607540693,1.68,143.85,143.82,2.6031788]
[1763607541075,0.72,143.84,143.82,2.6031788]
[1763607542172,6.95265243,143.83,143.81,2.6031788]
[1763607542386,1.68,143.82,143.81,2.6031788]
[1763607542980,1.68,143.82,143.78,6.95504108]
[1763607543186,2.4,143.82,143.81,2.6031788]
[1763607543392,1.68,143.82,143.81,2.6031788]
[1763607543696,9.35313586,143.82,143.78,0.7]
[1763607543902,9.35313586,143.82,143.77,68.12096]
[1763607543903,0.72,143.81,143.77,68.12096]
[1763607544079,0.72,143.81,143.79,2.6031788]
[1763607545094,1.68,143.82,143.8,2.6031788]
[1763607545291,9.3532521,143.82,143.8,2.6031788]
[1763607547004,2.4,143.82,143.81,2.6031788]
[1763607547699,6.95281695,143.83,143.78,6.95484351]
[1763607547900,6.95281695,143.83,143.82,2.6031788]
[1763607548078,9.35281695,143.83,143.82,2.6031788]
[1763607548277,2.4,143.83,143.82,2.6031788]
[1763607548506,2.4,143.83,143.81,2.6031788]
[1763607549904,9.35269846,143.83,143.81,2.6031788]
[1763607550994,0.72,143.82,143.79,50.0]
[1763607551186,0.72,143.82,143.8,2.6031788]
[1763607551404,0.72,143.82,143.79,2.6031788]
[1763607551802,7.67342295,143.82,143.79,2.6031788]
[1763607552693,2.6031788,143.8,143.73,50.0]
[1763607552894,1.68,143.79,143.71,50.0]
[1763607553091,2.6031788,143.78,143.72,2.6031788]
[1763607553302,3.3231788,143.78,143.73,2.6031788]
[1763607553483,0.72,143.77,143.72,2.6031788]
[1763607553680,0.72,143.77,143.68,50.0]
[1763607553681,26.95100487,143.75,143.68,50.0]
[1763607553884,24.34782607,143.75,143.69,2.6031788]
[1763607554111,0.72,143.74,143.67,2.6031788]
[1763607554287,1.68,143.73,143.66,50.0]
[1763607554499,2.6031788,143.71,143.66,52.6031788]
[1763607554695,2.6031788,143.68,143.64,0.2]
[1763607554918,4.2831788,143.67,143.64,0.2]
[1763607555127,4.2831788,143.66,143.64,0.2]
[1763607555413,0.72,143.7,143.64,3.5031788]
[1763607555597,1.68,143.69,143.66,2.6031788]
[1763607555797,1.68,143.68,143.66,52.6031788]
[1763607555988,1.68,143.68,143.66,53.3031788]
[1763607556196,1.68,143.68,143.66,0.7]
[1763607556516,1.68,143.68,143.65,2.6031788]
[1763607556712,1.68,143.68,143.65,3.3031788]
[1763607557315,0.72,143.67,143.64,0.2]
[1763607557610,3.3231788,143.67,143.64,0.2]
[1763607557917,6.96087985,143.66,143.64,0.2]
[1763607558104,1.68,143.65,143.64,0.2]
[1763607558421,2.4,143.65,143.64,0.2]
[1763607558990,9.36136442,143.65,143.64,0.2]
[1763607559301,1.68,143.65,143.64,0.2]
[1763607559498,1.68,143.65,143.64,63.29200649]
[1763607560599,1.68,143.65,143.64,0.2]
[1763607560810,1.68,143.65,143.64,2.8031788]
[1763607561790,1.68,143.65,143.64,0.2]
[1763607563497,8.64136442,143.65,143.64,0.2]
[1763607563895,9.30136442,143.65,143.64,0.2]
[1763607564303,1.68,143.65,143.64,0.2]
[1763607565505,7.62136442,143.65,143.64,0.2]
[1763607565707,8.64136442,143.65,143.64,0.0227]
[1763607569919,9.31136442,143.65,143.64,0.0227]
[1763607571022,7.63136442,143.65,143.64,0.0227]
[1763607571321,1.68,143.65,143.64,0.0227]
[1763607572336,18.06773878,143.7,143.64,3.3158788]
[1763607572505,18.06773878,143.7,143.66,2.6031788]
[1763607572827,18.06773878,143.7,143.64,0.7127]
[1763607572828,1.68,143.69,143.67,3.2931788]
[1763607573119,7.62859832,143.71,143.67,3.2931788]
[1763607573323,1.68,143.7,143.67,3.2931788]
[1763607573626,1.68,143.69,143.67,3.2931788]
[1763607574709,1.68,143.69,143.67,2.6031788]
[1763607576232,1.68,143.69,143.64,0.0227]
[1763607576233,0.67,143.68,143.64,0.0227]
[1763607576522,0.67,143.68,143.65,2.6031788]
[1763607577413,0.67,143.68,143.64,2.6258788]
[1763607578219,6.96039535,143.67,143.64,2.6258788]
[1763607578425,1.68,143.66,143.64,2.6258788]
[1763607579205,1.68,143.66,143.65,2.6031788]
[1763607579616,1.68,143.66,143.64,0.0227]
[1763607579617,1.68,143.66,143.64,2.6258788]
[1763607579811,24.35969129,143.68,143.64,0.0227]
[1763607580018,2.35,143.67,143.64,2.6258788]
[1763607580416,7.63087985,143.66,143.64,2.6258788]
[1763607580827,0.67,143.66,143.64,2.6258788]
[1763607581125,0.67,143.65,143.64,0.0227]
[1763607582531,7.63136442,143.65,143.64,0.0227]
[1763607588349,6.96136442,143.65,143.64,0.0227]
[1763607588548,0.67,143.69,143.64,4.79069539]
[1763607588839,25.02515429,143.71,143.68,4.07799539]
[1763607589142,1.68,143.7,143.68,4.07799539]
[1763607589819,8.63930379,143.7,143.68,4.07799539]
[1763607590410,0.66,143.73,143.69,4.78799539]
[1763607590617,6.9570057,143.74,143.72,4.07799539]
[1763607590930,1.68,143.73,143.72,4.07799539]
[1763607591618,1.68,143.73,143.71,4.07799539]
[1763607591819,8.63781937,143.73,143.71,4.07799539]
[1763607592740,8.63781937,143.73,143.68,63.86682308]
[1763607592741,0.66,143.72,143.68,63.86682308]
[1763607592946,0.66,143.72,143.69,4.07799539]
[1763607593741,0.66,143.76,143.71,4.07799539]
[1763607594044,1.68,143.75,143.73,4.07799539]
[1763607594544,2.34,143.75,143.73,4.07799539]
[1763607594938,9.29694136,143.75,143.73,4.07799539]
[1763607595120,1.68,143.74,143.73,4.07799539]
[1763607595522,1.68,143.74,143.72,50.0]
[1763607595717,2.34,143.74,143.72,54.07799539]
[1763607595928,1.68,143.74,143.72,54.07799539]
[1763607596124,6.95694136,143.75,143.73,4.07799539]
[1763607596350,1.68,143.74,143.73,4.07799539]
[1763607597145,18.12096,143.79,143.73,4.07799539]
[1763607597146,6.95623148,143.76,143.73,4.78799539]
[1763607597445,1.68,143.74,143.73,0.71]
[1763607597618,1.68,143.74,143.72,50.0]
[1763607597820,1.68,143.74,143.72,50.71]
[1763607598442,6.95623148,143.76,143.73,4.78799539]
[1763607598637,6.95623148,143.76,143.75,4.07799539]
[1763607598947,8.63623148,143.76,143.75,4.07799539]
[1763607599738,9.29623148,143.76,143.72,54.07799539]
[1763607599926,9.29623148,143.76,143.72,50.0]
[1763607600248,0.66,143.75,143.71,4.78799539]
[1763607600447,0.66,143.75,143.7,4.07799539]
[1763607600745,1.68,143.74,143.71,4.78799539]
[1763607600950,8.63623148,143.79,143.73,13.86682308]
[1763607600951,0.66,143.79,143.73,13.86682308]
[1763607601134,0.66,143.79,143.72,59.78882769]
[1763607601135,6.95313586,143.82,143.78,4.07799539]
[1763607601325,0.1,143.83,143.81,9.78882769]
[1763607601525,0.1,143.83,143.82,13.86682308]
[1763607601751,1.93593088,143.88,143.87,59.78882769]
[1763607601929,0.1,143.94,143.92,59.78882769]
[1763607602250,0.1,143.94,143.93,63.86682308]
[1763607602448,0.66,144.02,143.94,50.0]
[1763607602628,0.66,144.02,143.97,50.0]
[1763607602827,1.68,144.01,143.9,50.0]
[1763607603029,10.76866919,143.97,143.91,20.55749688]
[1763607603227,1.68,143.96,143.92,60.76866919]
[1763607603429,1.68,143.95,143.92,60.76866919]
[1763607603634,8.62704981,143.95,143.93,10.76866919]
[1763607604546,9.28704981,143.95,143.93,10.76866919]
[1763607604741,0.66,143.94,143.91,10.76866919]
[1763607605756,24.31737649,143.93,143.9,10.76866919]
[1763607606058,1.68,143.92,143.9,50.0]
[1763607606260,0.66,143.97,143.9,50.0]
[1763607606261,0.66,143.97,143.92,59.78882769]
[1763607606437,1.68,143.96,143.94,10.76866919]
[1763607607033,8.62637399,143.96,143.94,10.76866919]
[1763607607466,8.62637399,143.96,143.95,10.76866919]
[1763607607632,0.66,143.95,143.9,50.0]
[1763607607829,0.66,143.95,143.9,10.76866919]
[1763607608036,11.42866919,143.95,143.9,10.76866919]
[1763607608253,0.66,143.94,143.88,50.0]
[1763607608553,59.70417893,143.96,143.92,10.76866919]
[1763607608756,1.68,143.93,143.92,10.76866919]
[1763607608930,1.68,143.93,143.91,10.76866919]
[1763607609135,2.34,143.93,143.91,10.76866919]
[1763607609334,1.68,143.93,143.92,10.76866919]
[1763607609648,1.68,143.93,143.91,10.76866919]
[1763607610332,0.66,143.95,143.91,10.76866919]
[1763607610539,6.9458915,143.97,143.94,10.76866919]
[1763607610762,1.68,143.96,143.95,10.76866919]
[1763607611750,1.68,143.96,143.94,10.76866919]
[1763607611957,1.68,143.96,143.94,60.76866919]
[1763607612165,1.68,143.96,143.95,10.76866919]
[1763607612342,1.68,143.96,143.94,60.76866919]
[1763607612664,6.94685654,143.95,143.94,50.0]
[1763607613855,8.62648466,143.96,143.94,50.0]
[1763607615766,11.42866919,143.95,143.89,50.0]
[1763607616057,10.76866919,143.93,143.89,50.0]
[1763607616237,1.68,143.92,143.89,50.0]
[1763607616652,6.94878743,143.91,143.89,50.0]
[1763607617571,0.66,143.9,143.88,9.78882769]
[1763607617857,1.68,143.89,143.87,50.0]
[1763607618043,1.68,143.89,143.87,60.76866919]
[1763607618239,1.68,143.89,143.88,10.76866919]
[1763607618641,1.68,143.89,143.87,60.76866919]
[1763607618965,1.68,143.9,143.89,59.78882769]
[1763607619341,1.68,143.9,143.89,70.55749688]
[1763607619640,2.34,143.9,143.87,50.0]
[1763607619842,0.66,143.89,143.85,50.0]
[1763607620045,0.66,143.89,143.83,50.0]
[1763607620474,0.66,143.89,143.76,0.69560378]
[1763607620475,10.76866919,143.86,143.81,50.0]
[1763607620653,2.34,143.85,143.81,10.76866919]
[1763607620841,1.68,143.84,143.81,10.76866919]
[1763607621969,0.66,143.83,143.79,50.0]
[1763607622138,11.42866919,143.83,143.79,50.0]
[1763607622345,11.42866919,143.83,143.78,20.55749688]
[1763607622660,10.76866919,143.81,143.75,60.76866919]
[1763607622843,36.78802941,143.8,143.75,50.0]
[1763607623038,11.42866919,143.79,143.73,10.76866919]
[1763607623344,10.76866919,143.78,143.72,60.76866919]
[1763607623553,1.68,143.77,143.72,50.0]
[1763607623872,13.10866919,143.77,143.72,60.76866919]
[1763607624038,6.95410292,143.8,143.76,10.76866919]
[1763607624240,1.68,143.79,143.76,10.76866919]